[Event "*** SCC Grand Prix: Titled Tuesday Blitz"]
[Site "Chess.com"]
[Date "2020.10.13"]
[Round "2"]
[White "ErikRonka"]
[Black "chiwii"]
[Result "1-0"]
[WhiteElo "2441"]
[BlackElo "2220"]
[TimeControl "180+1"]
[EndTime "10:16:41 PDT"]
[Termination "ErikRonka won on time"]

1. e4 {[%clk 0:03:00.9]} 1... c5 {[%clk 0:02:58.8]} 2. Nf3 {[%clk 0:03:00.5]}
2... e6 {[%clk 0:02:58.6]} 3. d4 {[%clk 0:02:58.8]} 3... cxd4 {[%clk 0:02:58.9]}
4. Nxd4 {[%clk 0:02:59.7]} 4... a6 {[%clk 0:02:59.1]} 5. Nc3 {[%clk 0:02:59.8]}
5... Qc7 {[%clk 0:02:57.1]} 6. Qf3 {[%clk 0:02:59.3]} 6... Nf6 {[%clk
0:02:53.2]} 7. Bg5 {[%clk 0:02:58.7]} 7... Qe5 {[%clk 0:02:46.2]} 8. Be3 {[%clk
0:02:54.9]} 8... Nc6 {[%clk 0:02:35.5]} 9. O-O-O {[%clk 0:02:53.4]} 9... Nxd4
{[%clk 0:02:07.3]} 10. Bxd4 {[%clk 0:02:53.1]} 10... Qg5+ {[%clk 0:02:07.4]} 11.
Kb1 {[%clk 0:02:39.3]} 11... Be7 {[%clk 0:01:59]} 12. e5 {[%clk 0:02:06.9]}
12... Ng8 {[%clk 0:00:35.6]} 13. Bd3 {[%clk 0:02:05.6]} 13... f5 {[%clk
0:00:33.7]} 14. Qe2 {[%clk 0:01:20.9]} 14... Nh6 {[%clk 0:00:26.3]} 15. Be3
{[%clk 0:01:19]} 15... Qg6 {[%clk 0:00:25.4]} 16. f4 {[%clk 0:01:17.8]} 16...
Ng4 {[%clk 0:00:20.1]} 17. Bd4 {[%clk 0:01:15.9]} 17... b5 {[%clk 0:00:20.1]}
18. h3 {[%clk 0:01:15.7]} 18... Nh6 {[%clk 0:00:20.1]} 19. g4 {[%clk 0:01:15.3]}
19... Bb7 {[%clk 0:00:20.1]} 20. Rhg1 {[%clk 0:01:14.5]} 20... Qf7 {[%clk
0:00:18.3]} 21. a3 {[%clk 0:00:59.7]} 21... g6 {[%clk 0:00:16.7]} 22. Qf2 {[%clk
0:00:52.5]} 22... fxg4 {[%clk 0:00:16.3]} 23. hxg4 {[%clk 0:00:52.3]} 23... O-O
{[%clk 0:00:16.9]} 24. Rdf1 {[%clk 0:00:51.4]} 24... Rac8 {[%clk 0:00:15.4]} 25.
Ne4 {[%clk 0:00:49.8]} 25... Bxe4 {[%clk 0:00:14.8]} 26. Bxe4 {[%clk 0:00:50.7]}
26... Qg7 {[%clk 0:00:12.9]} 27. Qh2 {[%clk 0:00:47.3]} 27... Nf7 {[%clk
0:00:11.6]} 28. f5 {[%clk 0:00:46.6]} 28... exf5 {[%clk 0:00:10]} 29. gxf5
{[%clk 0:00:47.5]} 29... Rc4 {[%clk 0:00:03.7]} 30. fxg6 {[%clk 0:00:43.2]} 1-0

[Event "*** SCC Grand Prix: Titled Tuesday Blitz"]
[Site "Chess.com"]
[Date "2020.10.13"]
[Round "2"]
[White "KuzubovYuriy"]
[Black "aloe_normansen"]
[Result "1-0"]
[WhiteElo "2880"]
[BlackElo "2352"]
[TimeControl "180+1"]
[EndTime "10:16:42 PDT"]
[Termination "KuzubovYuriy won by resignation"]

1. d4 {[%clk 0:03:00.9]} 1... Nf6 {[%clk 0:02:59.7]} 2. Nf3 {[%clk 0:02:59.7]}
2... g6 {[%clk 0:02:59.2]} 3. Nbd2 {[%clk 0:02:59.1]} 3... d5 {[%clk 0:02:55.1]}
4. e3 {[%clk 0:02:58.5]} 4... Bg7 {[%clk 0:02:54.5]} 5. b4 {[%clk 0:02:58.6]}
5... O-O {[%clk 0:02:50.6]} 6. c4 {[%clk 0:02:58.8]} 6... c6 {[%clk 0:02:47.8]}
7. a4 {[%clk 0:02:56.4]} 7... a5 {[%clk 0:02:34.5]} 8. b5 {[%clk 0:02:56.4]}
8... c5 {[%clk 0:02:33.3]} 9. Bb2 {[%clk 0:02:56]} 9... Nbd7 {[%clk 0:02:22.5]}
10. Rc1 {[%clk 0:02:51.2]} 10... cxd4 {[%clk 0:02:17.4]} 11. Bxd4 {[%clk
0:02:50.7]} 11... dxc4 {[%clk 0:02:08]} 12. Bxc4 {[%clk 0:02:34.3]} 12... Nb6
{[%clk 0:01:53]} 13. Bb3 {[%clk 0:02:20.3]} 13... Bf5 {[%clk 0:01:49.1]} 14. O-O
{[%clk 0:02:17.4]} 14... Bd3 {[%clk 0:01:30.9]} 15. Re1 {[%clk 0:02:14.9]} 15...
Nfd5 {[%clk 0:01:14.3]} 16. Bxg7 {[%clk 0:01:51.7]} 16... Kxg7 {[%clk
0:01:15.2]} 17. Nc4 {[%clk 0:01:18.2]} 17... Nb4 {[%clk 0:00:47.8]} 18. Nfe5
{[%clk 0:00:49.7]} 18... Nxc4 {[%clk 0:00:33.8]} 19. Bxc4 {[%clk 0:00:46.5]}
19... Bxc4 {[%clk 0:00:32.4]} 20. Rxc4 {[%clk 0:00:33.4]} 20... f6 {[%clk
0:00:18.5]} 21. Nd7 {[%clk 0:00:24.9]} 21... Rf7 {[%clk 0:00:18.2]} 22. Nc5
{[%clk 0:00:20.6]} 22... e5 {[%clk 0:00:15]} 23. Ne6+ {[%clk 0:00:19.3]} 1-0

[Event "*** SCC Grand Prix: Titled Tuesday Blitz"]
[Site "Chess.com"]
[Date "2020.10.13"]
[Round "2"]
[White "Barmen_EV"]
[Black "Meri-Arabidze"]
[Result "1-0"]
[WhiteElo "2489"]
[BlackElo "2692"]
[TimeControl "180+1"]
[EndTime "10:16:43 PDT"]
[Termination "Barmen_EV won on time"]

1. d4 {[%clk 0:02:32.2]} 1... d5 {[%clk 0:02:58.3]} 2. c4 {[%clk 0:02:33.1]}
2... e6 {[%clk 0:02:58.1]} 3. Nc3 {[%clk 0:02:33.4]} 3... Nf6 {[%clk 0:02:58.3]}
4. cxd5 {[%clk 0:02:33.7]} 4... exd5 {[%clk 0:02:59.2]} 5. Bg5 {[%clk
0:02:33.8]} 5... Nbd7 {[%clk 0:02:59.8]} 6. e3 {[%clk 0:02:33.5]} 6... Be7
{[%clk 0:03:00.4]} 7. Bd3 {[%clk 0:02:33.3]} 7... c6 {[%clk 0:03:01.1]} 8. Qc2
{[%clk 0:02:33.6]} 8... O-O {[%clk 0:03:01.4]} 9. Nge2 {[%clk 0:02:34]} 9... Re8
{[%clk 0:03:01.7]} 10. O-O {[%clk 0:02:34.5]} 10... Nf8 {[%clk 0:03:02.3]} 11.
f3 {[%clk 0:02:34.9]} 11... g6 {[%clk 0:02:59.5]} 12. Rad1 {[%clk 0:02:28.1]}
12... Ne6 {[%clk 0:02:59.3]} 13. Bh4 {[%clk 0:02:28.2]} 13... b5 {[%clk
0:02:56.8]} 14. Kh1 {[%clk 0:02:23.1]} 14... Bd7 {[%clk 0:02:56.4]} 15. e4
{[%clk 0:02:19]} 15... dxe4 {[%clk 0:02:43.4]} 16. fxe4 {[%clk 0:02:19.9]} 16...
Ng4 {[%clk 0:02:42.8]} 17. Bxe7 {[%clk 0:02:17.2]} 17... Qxe7 {[%clk 0:02:43.7]}
18. Qd2 {[%clk 0:02:17.6]} 18... Qh4 {[%clk 0:02:39.9]} 19. h3 {[%clk
0:02:14.7]} 19... Nf2+ {[%clk 0:02:06.2]} 20. Rxf2 {[%clk 0:02:13.6]} 20... Qxf2
{[%clk 0:02:07.1]} 21. e5 {[%clk 0:02:14.5]} 21... f5 {[%clk 0:01:58.3]} 22. d5
{[%clk 0:02:00.5]} 22... cxd5 {[%clk 0:01:50.5]} 23. Nxd5 {[%clk 0:02:01.4]}
23... Bc6 {[%clk 0:01:42.4]} 24. Nf6+ {[%clk 0:01:47.9]} 24... Kh8 {[%clk
0:01:41.3]} 25. Rg1 {[%clk 0:01:48.3]} 25... Red8 {[%clk 0:01:27.4]} 26. Qh6
{[%clk 0:01:44.5]} 26... Nf8 {[%clk 0:01:25.2]} 27. Nf4 {[%clk 0:01:39.9]} 27...
Qg3 {[%clk 0:01:04.4]} 28. Ne6 {[%clk 0:01:39.8]} 28... Rd7 {[%clk 0:00:39.6]}
29. Nxf8 {[%clk 0:01:12.5]} 29... Rg7 {[%clk 0:00:10.2]} 30. N8xh7 {[%clk
0:00:52.1]} 30... Bxg2+ {[%clk 0:00:03]} 31. Rxg2 {[%clk 0:00:53]} 31... Qe1+
{[%clk 0:00:02.8]} 32. Rg1 {[%clk 0:00:53.4]} 1-0

[Event "*** SCC Grand Prix: Titled Tuesday Blitz"]
[Site "Chess.com"]
[Date "2020.10.13"]
[Round "2"]
[White "brunomorado"]
[Black "Malev212"]
[Result "0-1"]
[WhiteElo "2303"]
[BlackElo "2544"]
[TimeControl "180+1"]
[EndTime "10:16:43 PDT"]
[Termination "Malev212 won by resignation"]

1. d4 {[%clk 0:03:00]} 1... Nf6 {[%clk 0:02:58.3]} 2. Nc3 {[%clk 0:03:00.1]}
2... d5 {[%clk 0:02:56.6]} 3. Bg5 {[%clk 0:03:00.3]} 3... Nbd7 {[%clk
0:02:54.8]} 4. Qd3 {[%clk 0:03:00.2]} 4... h6 {[%clk 0:02:48.3]} 5. Bh4 {[%clk
0:03:00]} 5... c6 {[%clk 0:02:42.8]} 6. Bxf6 {[%clk 0:02:56.1]} 6... Nxf6 {[%clk
0:02:40.4]} 7. e4 {[%clk 0:02:57]} 7... dxe4 {[%clk 0:02:34.8]} 8. Nxe4 {[%clk
0:02:57.9]} 8... Nxe4 {[%clk 0:02:29.5]} 9. Qxe4 {[%clk 0:02:58.8]} 9... Qd5
{[%clk 0:02:28.8]} 10. Bd3 {[%clk 0:02:58.7]} 10... Qxe4+ {[%clk 0:02:27.1]} 11.
Bxe4 {[%clk 0:02:59.6]} 11... g6 {[%clk 0:02:25.5]} 12. Ne2 {[%clk 0:02:54.3]}
12... Bg7 {[%clk 0:02:25.1]} 13. O-O-O {[%clk 0:02:50.2]} 13... O-O {[%clk
0:02:24.4]} 14. h4 {[%clk 0:02:45.3]} 14... h5 {[%clk 0:02:21.6]} 15. Rhe1
{[%clk 0:02:36.2]} 15... e5 {[%clk 0:02:18.2]} 16. d5 {[%clk 0:02:35.8]} 16...
f5 {[%clk 0:02:16.2]} 17. Bd3 {[%clk 0:02:30.1]} 17... cxd5 {[%clk 0:02:14.6]}
18. Bb5 {[%clk 0:02:28.3]} 18... d4 {[%clk 0:02:07.3]} 19. f4 {[%clk 0:02:28.1]}
19... Rd8 {[%clk 0:01:40.4]} 20. Bc4+ {[%clk 0:02:22.6]} 20... Kh7 {[%clk
0:01:35.4]} 21. c3 {[%clk 0:02:17]} 21... Bd7 {[%clk 0:01:21.9]} 22. fxe5 {[%clk
0:02:03.2]} 22... dxc3 {[%clk 0:01:17.6]} 23. Nxc3 {[%clk 0:02:00.2]} 23... Rac8
{[%clk 0:01:16.4]} 24. Bb3 {[%clk 0:01:47.9]} 24... Bc6 {[%clk 0:01:16.1]} 25.
Rxd8 {[%clk 0:01:40.8]} 25... Rxd8 {[%clk 0:01:15.1]} 26. e6 {[%clk 0:01:41.1]}
26... Bf6 {[%clk 0:01:13.3]} 27. Nd5 {[%clk 0:01:23]} 27... Bxh4 {[%clk
0:01:00.5]} 28. e7 {[%clk 0:01:17.4]} 28... Re8 {[%clk 0:00:58.8]} 29. Re2
{[%clk 0:01:16]} 29... Bxd5 {[%clk 0:00:49.9]} 30. Bxd5 {[%clk 0:01:16.9]} 30...
b6 {[%clk 0:00:49.4]} 31. Kc2 {[%clk 0:01:14.3]} 31... Rxe7 {[%clk 0:00:48.9]}
32. Rxe7+ {[%clk 0:01:14.1]} 32... Bxe7 {[%clk 0:00:46.8]} 33. Kb3 {[%clk
0:01:15]} 33... g5 {[%clk 0:00:45]} 34. Kc4 {[%clk 0:01:14.3]} 34... g4 {[%clk
0:00:44.6]} 35. Kd3 {[%clk 0:01:09.9]} 35... Kg6 {[%clk 0:00:44]} 36. Ke2 {[%clk
0:01:08.4]} 36... Kg5 {[%clk 0:00:43.9]} 37. a3 {[%clk 0:01:01.3]} 37... Kf4
{[%clk 0:00:43.5]} 38. b4 {[%clk 0:00:58.4]} 38... h4 {[%clk 0:00:38.3]} 39. Kf1
{[%clk 0:00:58.2]} 39... Kg3 {[%clk 0:00:36.8]} 40. Be6 {[%clk 0:00:55.7]} 40...
f4 {[%clk 0:00:36]} 41. Bd5 {[%clk 0:00:54.9]} 41... Bf6 {[%clk 0:00:36.1]} 42.
a4 {[%clk 0:00:53.3]} 42... Bd4 {[%clk 0:00:36.4]} 43. b5 {[%clk 0:00:52.4]}
43... f3 {[%clk 0:00:35.6]} 44. gxf3 {[%clk 0:00:52.5]} 44... gxf3 {[%clk
0:00:35.5]} 0-1

[Event "*** SCC Grand Prix: Titled Tuesday Blitz"]
[Site "Chess.com"]
[Date "2020.10.13"]
[Round "2"]
[White "Andrei_Belozerov"]
[Black "nrvisakh"]
[Result "0-1"]
[WhiteElo "2542"]
[BlackElo "2808"]
[TimeControl "180+1"]
[EndTime "10:16:44 PDT"]
[Termination "nrvisakh won by resignation"]

1. e4 {[%clk 0:03:00.9]} 1... c5 {[%clk 0:02:58.1]} 2. Nf3 {[%clk 0:03:00.4]}
2... Nc6 {[%clk 0:02:58.6]} 3. d4 {[%clk 0:03:00.8]} 3... cxd4 {[%clk
0:02:58.9]} 4. Nxd4 {[%clk 0:03:01.5]} 4... Nf6 {[%clk 0:02:59.3]} 5. Nc3 {[%clk
0:03:01.7]} 5... e5 {[%clk 0:02:59.5]} 6. Ndb5 {[%clk 0:03:01.5]} 6... d6 {[%clk
0:02:59.9]} 7. Bg5 {[%clk 0:03:00.7]} 7... a6 {[%clk 0:02:59.9]} 8. Na3 {[%clk
0:03:01.2]} 8... b5 {[%clk 0:03:00.5]} 9. Nd5 {[%clk 0:03:01.6]} 9... Be7 {[%clk
0:02:59.7]} 10. Bxf6 {[%clk 0:03:02.1]} 10... Bxf6 {[%clk 0:03:00.1]} 11. c3
{[%clk 0:03:02.7]} 11... O-O {[%clk 0:03:00.1]} 12. Nc2 {[%clk 0:03:03.2]} 12...
Bg5 {[%clk 0:02:44.1]} 13. a4 {[%clk 0:03:00.9]} 13... bxa4 {[%clk 0:02:43.3]}
14. Rxa4 {[%clk 0:03:00.1]} 14... a5 {[%clk 0:02:42.9]} 15. Bc4 {[%clk
0:02:58.5]} 15... Be6 {[%clk 0:02:32.6]} 16. O-O {[%clk 0:02:45.2]} 16... Ne7
{[%clk 0:02:32.4]} 17. Nce3 {[%clk 0:02:37.8]} 17... Kh8 {[%clk 0:02:25.5]} 18.
Nxe7 {[%clk 0:02:34]} 18... Bxe3 {[%clk 0:02:04.8]} 19. fxe3 {[%clk 0:01:41.7]}
19... Qxe7 {[%clk 0:01:59]} 20. Bd5 {[%clk 0:01:39.9]} 20... Ra7 {[%clk
0:01:54.3]} 21. Rc4 {[%clk 0:01:30.4]} 21... Rb8 {[%clk 0:01:50.5]} 22. Rf2
{[%clk 0:01:28.8]} 22... Rc7 {[%clk 0:01:42.5]} 23. Qd3 {[%clk 0:01:22.6]} 23...
Qd7 {[%clk 0:01:30.2]} 24. h3 {[%clk 0:01:20.4]} 24... Qb5 {[%clk 0:01:23.7]}
25. Bxe6 {[%clk 0:01:11.7]} 25... fxe6 {[%clk 0:01:23.1]} 26. Rb4 {[%clk
0:01:00.1]} 26... Qe8 {[%clk 0:01:12.9]} 27. Rxb8 {[%clk 0:00:59]} 27... Qxb8
{[%clk 0:01:13.8]} 28. Qxd6 {[%clk 0:00:59.1]} 28... Rc8 {[%clk 0:01:14.2]} 29.
Qxe6 {[%clk 0:00:55.3]} 29... h6 {[%clk 0:01:02]} 30. Rf7 {[%clk 0:00:51.9]}
30... Rg8 {[%clk 0:00:59.5]} 31. b3 {[%clk 0:00:47.4]} 31... Qb5 {[%clk
0:00:54.6]} 32. Kh2 {[%clk 0:00:43.9]} 32... Qc5 {[%clk 0:00:50.3]} 33. c4
{[%clk 0:00:41.2]} 33... Qxe3 {[%clk 0:00:49.7]} 34. Qxe5 {[%clk 0:00:39.6]}
34... Qxb3 {[%clk 0:00:49.8]} 35. c5 {[%clk 0:00:34]} 35... Qxf7 {[%clk
0:00:49]} 36. Qd5 {[%clk 0:00:33.3]} 36... Qxd5 {[%clk 0:00:48.3]} 37. exd5
{[%clk 0:00:33.2]} 37... a4 {[%clk 0:00:49.2]} 38. c6 {[%clk 0:00:33]} 38... a3
{[%clk 0:00:50.1]} 39. d6 {[%clk 0:00:33.9]} 39... a2 {[%clk 0:00:51]} 40. d7
{[%clk 0:00:34.2]} 40... a1=Q {[%clk 0:00:51.6]} 41. c7 {[%clk 0:00:35.1]} 41...
Qe5+ {[%clk 0:00:51.3]} 0-1

[Event "*** SCC Grand Prix: Titled Tuesday Blitz"]
[Site "Chess.com"]
[Date "2020.10.13"]
[Round "2"]
[White "Politov_Pavel"]
[Black "Nastya_Rakhmangulova"]
[Result "1-0"]
[WhiteElo "2264"]
[BlackElo "2451"]
[TimeControl "180+1"]
[EndTime "10:16:45 PDT"]
[Termination "Politov_Pavel won on time"]

1. d4 {[%clk 0:02:58.5]} 1... d5 {[%clk 0:03:00]} 2. Nf3 {[%clk 0:02:56.5]} 2...
Nf6 {[%clk 0:02:58.3]} 3. c4 {[%clk 0:02:54.9]} 3... c6 {[%clk 0:02:58.4]} 4.
cxd5 {[%clk 0:02:54.1]} 4... cxd5 {[%clk 0:02:59.3]} 5. Nc3 {[%clk 0:02:55]}
5... Nc6 {[%clk 0:02:59.2]} 6. Bf4 {[%clk 0:02:52.2]} 6... Bf5 {[%clk 0:02:59]}
7. e3 {[%clk 0:02:51.1]} 7... e6 {[%clk 0:02:53.7]} 8. Qb3 {[%clk 0:02:51]} 8...
Bb4 {[%clk 0:02:32.7]} 9. Bb5 {[%clk 0:02:50.2]} 9... O-O {[%clk 0:02:29.9]} 10.
Bxc6 {[%clk 0:02:49.5]} 10... Bxc3+ {[%clk 0:02:29.5]} 11. Qxc3 {[%clk
0:02:50.2]} 11... bxc6 {[%clk 0:02:29.6]} 12. Qxc6 {[%clk 0:02:44.3]} 12... Qa5+
{[%clk 0:02:25.7]} 13. Qc3 {[%clk 0:02:42]} 13... Qa6 {[%clk 0:02:23.9]} 14. Qa3
{[%clk 0:02:29.5]} 14... Qxa3 {[%clk 0:01:50.5]} 15. bxa3 {[%clk 0:02:30.4]}
15... Bd3 {[%clk 0:01:50.8]} 16. Kd2 {[%clk 0:02:13.2]} 16... Bc4 {[%clk
0:01:22.5]} 17. Rhb1 {[%clk 0:02:12]} 17... Ne4+ {[%clk 0:01:22]} 18. Ke1 {[%clk
0:02:12.2]} 18... f6 {[%clk 0:00:54.2]} 19. Nd2 {[%clk 0:02:05.3]} 19... Nxd2
{[%clk 0:00:53.3]} 20. Kxd2 {[%clk 0:02:04.7]} 20... Rf7 {[%clk 0:00:48.3]} 21.
Rb2 {[%clk 0:02:00.9]} 21... Rc8 {[%clk 0:00:43.3]} 22. Rab1 {[%clk 0:02:00.1]}
22... e5 {[%clk 0:00:43.2]} 23. dxe5 {[%clk 0:01:52.8]} 23... fxe5 {[%clk
0:00:42.6]} 24. Bg3 {[%clk 0:01:53.7]} 24... e4 {[%clk 0:00:28]} 25. Rb8 {[%clk
0:01:54]} 25... Rff8 {[%clk 0:00:23.6]} 26. Rxc8 {[%clk 0:01:48.8]} 26... Rxc8
{[%clk 0:00:24]} 27. Rb7 {[%clk 0:01:49.4]} 27... Bd3 {[%clk 0:00:21.8]} 28.
Rxa7 {[%clk 0:01:45]} 28... Rc2+ {[%clk 0:00:21.6]} 29. Ke1 {[%clk 0:01:44.7]}
29... Rxa2 {[%clk 0:00:15]} 30. a4 {[%clk 0:01:40.5]} 30... Re2+ {[%clk
0:00:08.1]} 31. Kd1 {[%clk 0:01:39.8]} 31... Ra2 {[%clk 0:00:08]} 32. a5 {[%clk
0:01:40]} 32... Ra1+ {[%clk 0:00:03.4]} 33. Kd2 {[%clk 0:01:39.4]} 33... Ra3
{[%clk 0:00:04]} 34. h4 {[%clk 0:01:29]} 34... Bc4 {[%clk 0:00:03.9]} 35. h5
{[%clk 0:01:27.3]} 35... h6 {[%clk 0:00:02.6]} 36. Be5 {[%clk 0:01:25.5]} 36...
Ra2+ {[%clk 0:00:01.8]} 37. Kc3 {[%clk 0:01:24.7]} 37... Rxf2 {[%clk 0:00:02.3]}
38. Rxg7+ {[%clk 0:01:23.4]} 38... Kf8 {[%clk 0:00:02.7]} 39. Rg6 {[%clk
0:01:21.2]} 39... Kf7 {[%clk 0:00:01.5]} 40. a6 {[%clk 0:01:13.3]} 1-0

[Event "*** SCC Grand Prix: Titled Tuesday Blitz"]
[Site "Chess.com"]
[Date "2020.10.13"]
[Round "2"]
[White "biostatistician"]
[Black "Supernotar"]
[Result "0-1"]
[WhiteElo "2558"]
[BlackElo "2835"]
[TimeControl "180+1"]
[EndTime "10:16:49 PDT"]
[Termination "Supernotar won on time"]

1. d4 {[%clk 0:02:59.7]} 1... d5 {[%clk 0:02:57.8]} 2. Nf3 {[%clk 0:03:00]} 2...
Nf6 {[%clk 0:02:57.6]} 3. c4 {[%clk 0:03:00.9]} 3... dxc4 {[%clk 0:02:57.4]} 4.
e3 {[%clk 0:03:00.8]} 4... e6 {[%clk 0:02:57.6]} 5. Bxc4 {[%clk 0:03:01.2]} 5...
a6 {[%clk 0:02:57.9]} 6. O-O {[%clk 0:03:01.6]} 6... b5 {[%clk 0:02:58.1]} 7.
Bd3 {[%clk 0:02:55.3]} 7... Bb7 {[%clk 0:02:58.3]} 8. a4 {[%clk 0:02:55.6]} 8...
b4 {[%clk 0:02:58]} 9. b3 {[%clk 0:02:55.5]} 9... Nbd7 {[%clk 0:02:58.1]} 10.
Bb2 {[%clk 0:02:55.9]} 10... c5 {[%clk 0:02:57]} 11. Nbd2 {[%clk 0:02:55.8]}
11... Be7 {[%clk 0:02:56.8]} 12. Rc1 {[%clk 0:02:53.5]} 12... O-O {[%clk
0:02:55.8]} 13. Qe2 {[%clk 0:02:49]} 13... cxd4 {[%clk 0:02:49.9]} 14. Nxd4
{[%clk 0:02:48.6]} 14... Nc5 {[%clk 0:02:49.4]} 15. Bc4 {[%clk 0:02:44.1]} 15...
Qb6 {[%clk 0:02:48.7]} 16. Rfd1 {[%clk 0:02:43.7]} 16... Rfd8 {[%clk 0:02:43]}
17. N2f3 {[%clk 0:02:41.4]} 17... Rac8 {[%clk 0:02:40.1]} 18. Ne5 {[%clk
0:02:39.7]} 18... Nd5 {[%clk 0:02:27.9]} 19. Qh5 {[%clk 0:02:28.7]} 19... g6
{[%clk 0:02:20.3]} 20. Qh3 {[%clk 0:01:59.6]} 20... Bf6 {[%clk 0:01:57.4]} 21.
Nxf7 {[%clk 0:01:29.2]} 21... Re8 {[%clk 0:01:54.5]} 22. Nh6+ {[%clk 0:01:12.1]}
22... Kh8 {[%clk 0:01:52.6]} 23. Ng4 {[%clk 0:00:57.7]} 23... Bg7 {[%clk
0:01:51.8]} 24. Ba1 {[%clk 0:00:49.2]} 24... Nc3 {[%clk 0:01:49.4]} 25. Bxc3
{[%clk 0:00:45.1]} 25... bxc3 {[%clk 0:01:50.3]} 26. Rxc3 {[%clk 0:00:41.9]}
26... e5 {[%clk 0:01:48.4]} 27. Nf3 {[%clk 0:00:35.2]} 27... h5 {[%clk
0:01:46.7]} 28. Ng5 {[%clk 0:00:15]} 28... Ne4 {[%clk 0:01:46.6]} 29. Nxe4
{[%clk 0:00:12.8]} 29... Bxe4 {[%clk 0:01:47.5]} 30. Qh4 {[%clk 0:00:07.7]}
30... Rcd8 {[%clk 0:01:47.8]} 31. Rcc1 {[%clk 0:00:07.5]} 31... Bf5 {[%clk
0:01:29.1]} 32. h3 {[%clk 0:00:06.1]} 32... Rf8 {[%clk 0:01:22.1]} 33. Nh2
{[%clk 0:00:04.7]} 33... e4 {[%clk 0:01:05.9]} 34. Rxd8 {[%clk 0:00:02.7]} 34...
Rxd8 {[%clk 0:01:05.6]} 35. g4 {[%clk 0:00:02]} 35... Bf6 {[%clk 0:01:03]} 36.
Qg3 {[%clk 0:00:01.3]} 36... Be6 {[%clk 0:01:00.2]} 0-1

[Event "*** SCC Grand Prix: Titled Tuesday Blitz"]
[Site "Chess.com"]
[Date "2020.10.13"]
[Round "2"]
[White "keepitcool9499"]
[Black "tandaleo"]
[Result "1-0"]
[WhiteElo "2622"]
[BlackElo "2321"]
[TimeControl "180+1"]
[EndTime "10:16:49 PDT"]
[Termination "keepitcool9499 won by resignation"]

1. d4 {[%clk 0:03:00.9]} 1... d5 {[%clk 0:02:58.7]} 2. c4 {[%clk 0:03:01.8]}
2... e6 {[%clk 0:02:58.8]} 3. Nc3 {[%clk 0:03:01.1]} 3... c6 {[%clk 0:02:58.2]}
4. Nf3 {[%clk 0:02:58.8]} 4... dxc4 {[%clk 0:02:58.3]} 5. a4 {[%clk 0:02:56.7]}
5... Bb4 {[%clk 0:02:57.9]} 6. e3 {[%clk 0:02:50.7]} 6... b5 {[%clk 0:02:57.1]}
7. Bd2 {[%clk 0:02:48.2]} 7... a5 {[%clk 0:02:57.2]} 8. axb5 {[%clk 0:02:45.5]}
8... Bxc3 {[%clk 0:02:57.6]} 9. Bxc3 {[%clk 0:02:44.5]} 9... cxb5 {[%clk
0:02:58.5]} 10. Ne5 {[%clk 0:02:41.8]} 10... Bb7 {[%clk 0:02:41.7]} 11. Qg4
{[%clk 0:02:37]} 11... Kf8 {[%clk 0:02:06.5]} 12. Be2 {[%clk 0:02:11.9]} 12...
Nf6 {[%clk 0:02:00.9]} 13. Qf4 {[%clk 0:02:09]} 13... Nbd7 {[%clk 0:01:45.9]}
14. O-O {[%clk 0:01:51.8]} 14... Nxe5 {[%clk 0:01:44.9]} 15. Qxe5 {[%clk
0:01:48.3]} 15... Nd5 {[%clk 0:01:39.4]} 16. Bxa5 {[%clk 0:01:25.1]} 16... Rxa5
{[%clk 0:00:32]} 17. Rxa5 {[%clk 0:01:21.3]} 17... Qxa5 {[%clk 0:00:32.5]} 18.
Qb8+ {[%clk 0:01:17.5]} 18... Ke7 {[%clk 0:00:33]} 19. Qxh8 {[%clk 0:01:16.4]}
19... Qd2 {[%clk 0:00:31.7]} 20. Qb8 {[%clk 0:00:58.5]} 20... Bc6 {[%clk
0:00:30.1]} 21. Bf3 {[%clk 0:00:57]} 21... Qxb2 {[%clk 0:00:28.2]} 22. e4 {[%clk
0:00:54.6]} 22... Nf6 {[%clk 0:00:17.9]} 23. Qc7+ {[%clk 0:00:46.5]} 23... Bd7
{[%clk 0:00:17.8]} 24. d5 {[%clk 0:00:46.2]} 24... e5 {[%clk 0:00:12.5]} 25.
Qc5+ {[%clk 0:00:40.3]} 25... Ke8 {[%clk 0:00:11.9]} 26. d6 {[%clk 0:00:36.8]}
26... Qd4 {[%clk 0:00:10.9]} 27. Qc7 {[%clk 0:00:35.6]} 27... Kf8 {[%clk
0:00:04.5]} 28. Qd8+ {[%clk 0:00:34.1]} 28... Be8 {[%clk 0:00:04.7]} 29. Qe7+
{[%clk 0:00:34.3]} 29... Kg8 {[%clk 0:00:05.1]} 30. Rd1 {[%clk 0:00:33.6]} 30...
Qa7 {[%clk 0:00:02.7]} 31. Qxa7 {[%clk 0:00:32.1]} 1-0

[Event "*** SCC Grand Prix: Titled Tuesday Blitz"]
[Site "Chess.com"]
[Date "2020.10.13"]
[Round "2"]
[White "PawnEatingZombie"]
[Black "guillembaches"]
[Result "0-1"]
[WhiteElo "2187"]
[BlackElo "2418"]
[TimeControl "180+1"]
[EndTime "10:16:49 PDT"]
[Termination "guillembaches won on time"]

1. d4 {[%clk 0:03:00.9]} 1... d5 {[%clk 0:02:50.2]} 2. c4 {[%clk 0:03:00.5]}
2... Nc6 {[%clk 0:02:49.7]} 3. Nc3 {[%clk 0:03:00.4]} 3... Nf6 {[%clk
0:02:48.6]} 4. Nf3 {[%clk 0:03:00.2]} 4... dxc4 {[%clk 0:02:46.7]} 5. Bg5 {[%clk
0:02:59.9]} 5... h6 {[%clk 0:02:45.7]} 6. Bxf6 {[%clk 0:02:59.4]} 6... exf6
{[%clk 0:02:46.6]} 7. e3 {[%clk 0:02:59.7]} 7... Bd6 {[%clk 0:02:44.3]} 8. Bxc4
{[%clk 0:02:59.1]} 8... O-O {[%clk 0:02:44.1]} 9. O-O {[%clk 0:02:58.7]} 9... a6
{[%clk 0:02:42.7]} 10. a3 {[%clk 0:02:58.2]} 10... b5 {[%clk 0:02:40]} 11. Ba2
{[%clk 0:02:52.7]} 11... Bb7 {[%clk 0:02:35.1]} 12. Re1 {[%clk 0:02:45.4]} 12...
f5 {[%clk 0:02:31.6]} 13. Rc1 {[%clk 0:02:31.6]} 13... Re8 {[%clk 0:02:26.3]}
14. e4 {[%clk 0:01:52.5]} 14... fxe4 {[%clk 0:02:24.9]} 15. Nxe4 {[%clk
0:01:53.3]} 15... Qd7 {[%clk 0:02:09.3]} 16. Nxd6 {[%clk 0:01:45.4]} 16... cxd6
{[%clk 0:02:05.7]} 17. Qd3 {[%clk 0:01:28.3]} 17... Ne7 {[%clk 0:01:58.3]} 18.
d5 {[%clk 0:01:15.5]} 18... Ng6 {[%clk 0:01:51.2]} 19. Nd4 {[%clk 0:01:09.2]}
19... Ne5 {[%clk 0:01:48]} 20. Qg3 {[%clk 0:01:08.4]} 20... Rac8 {[%clk
0:01:43.4]} 21. h3 {[%clk 0:01:00.1]} 21... Nc4 {[%clk 0:01:38.6]} 22. Rxe8+
{[%clk 0:00:37.3]} 22... Rxe8 {[%clk 0:01:37.4]} 23. Nc6 {[%clk 0:00:30.5]}
23... Ne5 {[%clk 0:01:19]} 24. Nxe5 {[%clk 0:00:26.2]} 24... Rxe5 {[%clk
0:01:13.3]} 25. Qd3 {[%clk 0:00:22.5]} 25... Qe7 {[%clk 0:01:09.6]} 26. Qc3
{[%clk 0:00:18.2]} 26... Kh7 {[%clk 0:00:54.5]} 27. Bb1+ {[%clk 0:00:15.3]}
27... g6 {[%clk 0:00:54.1]} 28. Kh2 {[%clk 0:00:12]} 28... Bxd5 {[%clk 0:00:52]}
29. Qc7 {[%clk 0:00:10.5]} 29... Bc4 {[%clk 0:00:45.3]} 30. Qc8 {[%clk
0:00:02.9]} 30... Re2 {[%clk 0:00:40.4]} 31. b3 {[%clk 0:00:01.9]} 31... Qe5+
{[%clk 0:00:36.6]} 0-1